Cogmind - Beta 15 @@@ ROGUE MODE // 2025.06.23 @ 16:31:38 Player: Volvedor Result: Destroyed by D-53 Grenadier with Mini Grenade Launcher Performance ------------- Evolutions (0) 0 Regions Visited (0) 0 Robots Destroyed (7) 35 Value Destroyed (36) 36 Prototype IDs (0) 0 Alien Tech Used (0) 0 Bonus (0) 0 TOTAL SCORE: 71 Bonus ------- None Cogmind --------- Core Integrity 0/250 Matter 300/300 Energy 99/100 System Corruption 1% Temperature Cool (0) Movement Core (50) Location -11/Scrapyard Parts ------- > --- POWER (1) -------- (None) > --- PROPULSION (2) --- (None) > --- UTILITY (2) ------ (None) > --- WEAPON (2) ------- (None) > --- INVENTORY (5) ---- Light Ion Engine Light Treads Light Treads EM Pulse Gun Mining Laser Peak State ------------ > --- POWER ------------ Ion Engine > --- PROPULSION ------- Aluminum Leg Aluminum Leg > --- UTILITY ---------- Small Storage Unit Improved Terrain Scanner > --- WEAPON ----------- Assault Rifle Assault Rifle > --- INVENTORY -------- Light Ion Engine Light Ion Engine Light Ion Engine Light Treads Light Treads Seismic Detector EM Pulse Gun Mining Laser [Rating: 9] Favorites ----------- Power Ion Engine Engine Ion Engine Propulsion Aluminum Leg Leg Aluminum Leg Utility Small Storage Unit Device Improved Terrain Scanner Storage Small Storage Unit Weapon Assault Rifle Ballistic Gun Assault Rifle Build | -11 ------- Run | Yrd Slots Evolved . | . Power . | . Propulsion . | . Utility . | . Weapon . | . Parts Attached 8 | 8 Power 1 | 1 Engine 1 | 1 Core . | . Reactor . | . Propulsion 2 | 2 Treads . | . Leg 2 | 2 Wheel . | . Hover . | . Flight . | . Utility 3 | 3 Device 2 | 2 Storage 1 | 1 Processor . | . Hackware . | . Protection . | . Artifact . | . Weapon 2 | 2 Energy Gun . | . Energy Cannon . | . Ballistic Gun 2 | 2 Ballistic Cannon . | . Launcher . | . Special Weapon . | . Impact Weapon . | . Slashing Weapon . | . Piercing Weapon . | . Special Melee Weapon . | . Unidentified Prototypes . | . Parts Lost 6 | 6 Power 1 | 1 Propulsion 2 | 2 Utility 1 | 1 Weapon 2 | 2 Highest Loss Streak 5 | 5 To Critical Strikes . | . Average Backups 7 | 7 Power 2 | 2 Propulsion 1 | 1 Utility . | . Weapon 1 | 1 Tool/Special . | . Unused Backups 8 | 8 Power 3 | 3 Propulsion 2 | 2 Utility 1 | 1 Weapon 2 | 2 Tool/Special . | . Average Slot Usage (%) . | . Peak Build Rating 9 | 9 Average Rating 8 | 8 On Entrance . | . Naked Turns . | . Heaviest Build 15 | 15 Greatest Support 20 | 20 Greatest Overweight (x) 1 | 1 Average Overweight (x) . | . Largest Inventory Capacity 8 | 8 Average Capacity 7 | 7 Most Carried 8 | 8 Average Carried 7 | 7 Final Capacity 5 | 5 Final Carried 5 | 5 Class Distribution -------------------- None Dominant Class ---------------- None Resources | -11 ----------- Run | Yrd Matter Collected 357 | 357 Remotely . | . Salvage Created 177 | 177 Parts 16 | 16 Haulers Intercepted . | . Recyclers Shooed 2 | 2 Parts Field Recycled . | . Retrieved Matter . | . Parts Self-Destructed . | . Prevented . | . Kills | -11 ------- Run | Yrd Combat Hostiles Destroyed 1 | 1 Guns 1 | 1 Classes Destroyed 4 | 4 Worker 2 | 2 Tunneler 4 | 4 Recycler 1 | 1 Assembled 1 | 1 Best Kill Streak 4 | 4 Combat Bots Only 1 | 1 Max Kills in Single Turn 1 | 1 Gunslinging . | . Exploded . | . Melee . | . Uniques/NPCs Destroyed . | . Combat | -11 -------- Run | Yrd Hostile Shots Fired 47 | 47 Missed 18 | 18 Hits 29 | 29 Melee 13 | 13 Projectile 16 | 16 AOE 6 | 6 Part Disruptions 1 | 1 Damage Taken 750 | 750 Core 265 | 265 Absorbed by Shields . | . Core Remaining (%) . | . Volleys Fired 17 | 17 Largest 2 | 2 Hottest 40 | 40 Shots Fired 34 | 34 Gun 34 | 34 Cannon . | . Launcher . | . Special . | . Kinetic 34 | 34 Thermal . | . Explosive . | . Electromagnetic . | . Robot Hit Streak 4 | 4 Robot Miss Streak 3 | 3 Penetration Max . | . Secondary Targets 1 | 1 Max Gunslinging Chain 1 | 1 Shots Hit Robots 17 | 17 Core Hits 12 | 12 Critical Kills 1 | 1 Critical Parts Destroyed . | . Critical Strikes 1 | 1 Destroy 1 | 1 Melee Attacks . | . Impact . | . Slashing . | . Piercing . | . Sneak Attacks . | . Combat Hostiles . | . Follow-up Attacks . | . Damage Inflicted 235 | 235 Guns 228 | 228 Cannons . | . Explosions . | . Melee . | . Ramming 7 | 7 Kinetic 228 | 228 Thermal . | . Explosive . | . Electromagnetic . | . Impact . | . Slashing . | . Piercing . | . Highest Corruption 1 | 1 Average Corruption 1 | 1 Corruption Purged . | . Corruption Blocked . | . Overload Shots . | . Overflow Damage . | . Projectiles . | . Explosions . | . Melee . | . Knockbacks . | . Impact . | . Kinetic . | . Secondary . | . Self-Inflicted Damage . | . Shots . | . Rammed . | . Targets Rammed 1 | 1 Kicked 1 | 1 Crushed . | . Highest Temperature 2 | 2 Average Temperature 2 | 2 Received Heat Transfer 20 | 20 Siege Activations . | . Martial Activations . | . Shielding Activations . | . Robots Disrupted . | . Combat Hostiles . | . Robots Corrupted . | . Combat Hostiles . | . Parts Fried . | . Impact Corruptions . | . Robots Melted . | . Combat Hostiles . | . Parts Melted . | . Heat Transferred . | . Parts Sabotaged . | . Parts Stolen . | . Parts Stripped . | . Power Chain Reactions . | . Alert | -11 ------- Run | Yrd Maximum Alert Level . | . Low Security (%) 100 | 100 Level 1 . | . Level 2 . | . Level 3 . | . Level 4 . | . Level 5 . | . High Security . | . Max Security . | . Peak Influence 10 | 10 Initial . | . Average . | . Influence Increases 35 | 35 Destroy 0b10 Robot/NC 35 | 35 Influence Decreases 35 | 35 Time Decay 35 | 35 Squads Dispatched . | . Investigation . | . Extermination . | . Reinforcement . | . Assault . | . Garrison . | . Intercept . | . Searches Triggered . | . Construction Impeded . | . Haulers Reinforced . | . Active Scanning Responses . | . Cargo Convoy Interrupts . | . Stealth | -11 --------- Run | Yrd Distress Signals . | . Communications Jammed . | . Distress Signals . | . Times Spotted 11 | 11 Peak Tracking Total 8 | 8 Tactical Retreats . | . Traps | -11 ------- Run | Yrd Traps Triggered . | . Indirectly . | . Trap Hack Attempts . | . Triggered . | . Disarmed . | . Reprogrammed . | . Reused . | . Traps Extracted . | . Installed . | . Triggered . | . Machines | -11 ---------- Run | Yrd Machines Disabled . | . Max in Single Turn . | . Machines Repaired . | . Machines Dismantled . | . Machines Sabotaged . | . Overloaded Fab Kills . | . Hacking | -11 --------- Run | Yrd Machines Accessed . | . Terminals . | . Fabricators . | . Repair Stations . | . Recycling Units . | . Scanalyzers . | . Garrison Access . | . Total Hacks . | . Successful . | . Failed . | . Catastrophic . | . Database Lockouts . | . Manual . | . Terminals . | . Fabricators . | . Repair Stations . | . Recycling Units . | . Scanalyzers . | . Garrison Access . | . Terminal Hacks . | . Fabricator Hacks . | . Repair Station Hacks . | . Recycling Unit Hacks . | . Scanalyzer . | . Garrison Access Hacks . | . Unauthorized Hacks . | . Terminals . | . Fabricators . | . Repair Stations . | . Recycling Units . | . Scanalyzers . | . Garrison Access . | . Data Cores Recovered . | . Used . | . Hacking Detections . | . Full Trace Events . | . Feedback Events . | . Feedback Blocked . | . Robot Schematics Acquired . | . Robots Built . | . Authchips . | . Time . | . Total Robot Build Rating . | . Part Schematics Acquired . | . Parts Built . | . Authchips . | . Time . | . Total Part Build Rating . | . Parts Repaired . | . Time . | . Parts Recycled . | . Recycled Matter . | . Retrieved Matter . | . Retrieved Components . | . Parts Scanalyzed . | . Part Schematics Acquired . | . Parts Damaged . | . Bothacking | -11 ------------ Run | Yrd Used RIF Installer . | . Robots Hacked . | . Non-combat . | . Combat . | . Robot Hacks Applied . | . Relay Couplers Released . | . Fabnet Peak Effective % . | . Robots Rewired . | . Allies Hacked . | . Hacks Repelled . | . Allies | -11 -------- Run | Yrd Total Allies . | . Largest Group . | . Highest-Rated Group . | . Highest-Rated Ally . | . Total Orders . | . Ally Attacks . | . Total Damage . | . Kills . | . Allies Corrupted . | . Allies Melted . | . Intel | -11 ------- Run | Yrd Active Infowar (turns) 11191 | 11191 Terrain 9672 | 9672 Seismic 1519 | 1519 Robot Analysis Total . | . Derelict Logs Recovered . | . Drone Launches . | . Drone Recoveries . | . Exploration | -11 ------------- Run | Yrd Turns Passed 11340 | 11340 Spaces Moved 4107 | 4107 Core 7 | 7 Treads . | . Legs 4100 | 4100 Wheels . | . Hover . | . Flight . | . Fastest Speed 50 | 50 Average Speed 120 | 120 Slowest Speed 190 | 190 Overloaded Moves . | . Propulsion Burnouts . | . Robots Hopped . | . Potential Cave-ins . | . Cave-ins Triggered . | . Exploration Rate (%) 111 | 111 Regions Visited . Branch Regions . Pre-discovered Areas . | . Known Exits Taken . | . Unknown Exits Taken . | . Scrap Searched . | . Spaces Dug . | . Terrain Destroyed . | . Melee . | . Projectile . | . AOE . | . Terrain Rammed . | . Walls Destroyed . | . Machines Disabled . | . Actions | -11 --------- Run | Yrd Total 10481 | 10481 Wait 6337 | 6337 Move 4107 | 4107 Hop . | . Pick Up 9 | 9 Fast Attach 7 | 7 Attach . | . Detach . | . Swap 1 | 1 Drop 2 | 2 Fire 17 | 17 Melee . | . Ram . | . Kick 1 | 1 Crush . | . Escape Stasis . | . Rewire . | . Trap . | . Miscellaneous . | . Route ------- -11/Scrapyard (discovered 1 exit: [*Mat]) History --------- Turn | Location | Event 34 | -11/Scrapyard | Discovered new exit (range 16) 11224 | -11/Scrapyard | Assembled infested the area 11336 | -11/Scrapyard | Core integrity fell below 50% 11341 | -11/Scrapyard | Core integrity fell below 20% 11341 | -11/Scrapyard | Destroyed by D-53 Grenadier with Mini Grenade Launcher Last Messages --------------- 11254_ Imp. Terrain Scanner destroyed. 11259_ Knocked back. 11260_ Dropped Sml. Storage Unit. 11263_ as-49820 destroyed. 11296_ as-13382 destroyed. 11296_ as-90131 destroyed. 11296_ as-89802 destroyed. 11296_ as-30415 destroyed. 11297_ The unstable cave ceiling collapses. 11327_ Acquired 4 matter. 11328_ Acquired 7 matter. 11330_ Assault Rifle destroyed. 11330_ Knocked back. 11333_ as-27710 destroyed. 11333_ Aluminum Leg destroyed. 11333_ System corrupted by crushing effect (+1). 11335_ as-93121 destroyed. 11337_ Assault Rifle destroyed. 11337_ Ion Engine destroyed. 11339_ Aluminum Leg destroyed. Map ----- +----------------------------------------------------+ | | | | | | | | | | | | | | | | | | | | | | | | | | | | | | | ?????????????????????????????????????????????????? | | ??????????????????#????#?????????????????????????? | | ?????????????###??????###????????????????????????? | | ???????????##?#????#### ###??????????????????????? | | ?????????#??#?????## # ###????????????????????? | | ??????????#????#??# ###??????????????????? | | ???????#???????#??# #????????#????#????? | | ???????#????#???#?# #???#??#???#???????? | | ???????#?#??##???## ##???#???????#???#?? | | ?????????????#?#?### ###???????##???#???? | | ???????????????##?## @ #?##???#????????#??? | | ???????????????#??## #?#?###?#?#????????? | | ???????#???##?##?### ###?#???????#???##?? | | ???#??#?##????##?##### # #######??????????????? | | ???????#???#?#?### d ####?##??????#??????? | | ??????#??#?##### d ##?######??#????#???? | | #?#?##??###??### # #?######?#??#???#??? | | #???####??#?#?## #?#?#???##??????#??? | | ??##??##?#?#???# ######?#?##???#??#?? | | ??#??#???###?### % #############???? | | #??#????#?###### ###?# | | ?#??#?##?###??## # # # #??? | | ?#???####?###### # # # #??? | | ???#??#?###????##### ### # # #?#? | | #??################# ### # #??? | | #??# ## ###%#?# # ###############?? | | ?### # ## ### # #??###???# | | ##?## # #*!! # # ###????### | | ?#?## # *% # # ##???##### | | #??## # # # ###????#?? | | ????# # # # #???#??#?? | | ##?### # ## ## # ##??###### | | ?????############### ## # #??## | | ?#????????#?##?#?#?# ## # #??# | | ??##?#?##??######### ## # #??# | +----------------------------------------------------+ Best States ------------- Heat Dissipation 25 Energy Generation 10 Energy Capacity 250 Matter Stores 300 Matter Capacity 300 Sight Range 16 Terrain Scan Range 16 Terrain Scan Density 10 Evasion (%) 55 Item Schematics ----------------- None Robot Schematics ------------------ None Fabricated ------------ Nothing Repaired ---------- Nothing Alien Tech Used ----------------- None Achievements -------------- None Challenges ------------ None Game ------ Seed MicrowarpMobileSource Manual? 0 Play Time 00:37:04 Cumulative 33.0 hours Start 2025.06.23 @ 16:10:53 End 2025.06.23 @ 16:31:38 Sessions 0 Manual Loads 0 Difficulty Rogue Special Mode None Game No. 33 Rogue 33 Adventurer 0 Explorer 0 Win Type - Total 0 Types 0/0/0/0/0/0/0/0/0/0 Lore% 21 Gallery% 22 Achievement% 17 Wizard Run 0 Options --------- Layout 2 ASCII 0 Keyboard 0 Movement Mouse Keybinds 0 Fullscreen 1 Font 16/TerminusCaps Map View 27x23 Zoom Use 15% Tactical HUD 1 Map Filters NONE Filters NONE Steam 1 RUN: c6d588cb-6dd7-420c-b828-b5595112224b